bitfinex/quotes_SOLUSD_20241220
["timestamp","ask_amount","ask_price","bid_price","bid_amount"]
[1734696888705,36.53532907,180.84,180.78,20.0]
[1734696889017,43.70492907,180.85,180.79,20.0]
[1734696889225,43.70492907,180.8,180.76,0.82931181]
[1734696889425,44.16405797,180.9,180.74,14.66156832]
[1734696889725,43.70492907,180.84,180.75,43.70492907]
[1734696890034,43.70492907,180.84,180.76,0.82936618]
[1734696890416,18.35092907,180.84,180.76,0.82936618]
[1734696890728,43.70492907,180.83,180.78,20.0]
[1734696890937,24.33392908,180.83,180.78,20.0]
[1734696891233,43.70492907,180.84,180.8,20.0]
[1734696891617,35.98623828,180.84,180.78,20.82934295]
[1734696891814,43.70492907,180.83,180.78,0.82934295]
[1734696892124,43.70492907,180.84,180.78,20.0]
[1734696892501,14.49792907,180.84,180.78,20.0]
[1734696892727,43.70492907,180.82,180.75,0.82935838]
[1734696892930,43.70492907,180.84,180.77,20.0]
[1734696893231,43.70492907,180.82,180.78,20.0]
[1734696893447,43.70492907,180.8,180.78,20.0]
[1734696893607,43.70492907,180.8,180.74,2.39742727]
[1734696893808,43.70492907,180.76,180.71,0.82962467]
[1734696894034,43.70492907,180.76,180.69,27.6717]
[1734696894035,43.70492907,180.72,180.69,27.6717]
[1734696894329,27.59392907,180.72,180.69,27.6717]
[1734696894507,23.776884,180.89,180.69,27.6717]
[1734696894711,43.70492907,180.73,180.69,27.6717]
[1734696894911,43.70492907,180.71,180.64,0.8296962]
[1734696895119,43.70492907,180.66,180.58,43.70492907]
[1734696895347,43.70492907,180.66,180.59,0.83023208]
[1734696895507,43.70492907,180.6,180.55,24.55526627]
[1734696895706,43.70492907,180.63,180.43,6.6599]
[1734696895707,23.902374,180.62,180.43,6.6599]
[1734696896018,43.70492907,180.47,180.43,6.6599]
[1734696896218,43.70492907,180.47,180.33,0.4321569]
[1734696896219,43.70492907,180.45,180.44,22.180346]
[1734696896539,87.40985814,180.45,180.35,0.83130818]
[1734696896702,43.70492907,180.36,180.34,2.42828302]
[1734696896907,43.70492907,180.37,180.33,0.4321569]
[1734696897118,43.70492907,180.35,180.33,0.4321569]
[1734696897718,0.12549,180.44,180.33,0.4321569]
[1734696897913,43.70492907,180.37,180.33,0.4321569]
[1734696898303,43.70492907,180.35,180.33,0.4321569]
[1734696898714,20.0,180.57,180.33,0.4321569]
[1734696899013,43.70492907,180.42,180.34,0.8311968]
[1734696899321,36.02492907,180.42,180.34,0.8311968]
[1734696899511,28.34492907,180.42,180.34,0.8311968]
[1734696899721,43.70492907,180.42,180.33,44.13708597]
[1734696900027,43.70492907,180.5,180.41,43.70492907]
[1734696900200,43.70492907,180.48,180.39,43.70492907]
[1734696900405,43.70492907,180.46,180.39,43.70492907]
[1734696900647,43.70492907,180.48,180.41,43.70492907]
[1734696900840,62.41932907,180.63,180.39,0.83114083]
[1734696900841,62.41932907,180.63,180.42,0.83107394]
[1734696901007,43.70492907,180.49,180.4,43.70492907]
[1734696901342,43.70492907,180.49,180.43,20.0]
[1734696901525,43.70492907,180.49,180.45,20.0]
[1734696901836,43.70492907,180.5,180.45,20.0]
[1734696902054,43.70492907,180.54,180.47,20.0]
[1734696902238,43.70492907,180.52,180.47,20.0]
[1734696902458,43.70492907,180.56,180.47,20.0]
[1734696902734,43.70492907,180.63,180.44,43.70492907]
[1734696902735,43.70492907,180.52,180.44,43.70492907]
[1734696902919,43.70492907,180.46,180.38,0.83080654]
[1734696903105,43.70492907,180.42,180.37,2.44705419]
[1734696903306,43.70492907,180.44,180.36,43.70492907]
[1734696903541,43.70492907,180.48,180.4,43.70492907]
[1734696903907,43.70492907,180.41,180.35,22.188653]
[1734696904215,43.70492907,180.45,180.36,0.83162763]
[1734696904722,43.70492907,180.49,180.39,43.70492907]
[1734696904903,43.70492907,180.43,180.38,0.83100913]
[1734696905105,43.70492907,180.39,180.33,0.4321569]
[1734696905408,43.70492907,180.45,180.33,0.4321569]
[1734696905409,43.70492907,180.34,180.33,0.4321569]
[1734696906321,43.70492907,180.45,180.33,0.4321569]
[1734696906322,43.70492907,180.38,180.33,0.4321569]
[1734696906841,43.70492907,180.36,180.33,0.4321569]
[1734696907349,43.70492907,180.39,180.33,0.4321569]
[1734696907508,12.4641,180.55,180.33,20.4321569]
[1734696907708,43.70492907,180.41,180.35,20.0]
[1734696907943,43.70492907,180.54,180.39,20.0]
[1734696907944,43.70492907,180.47,180.39,20.0]
[1734696908139,43.70492907,180.49,180.4,0.83109653]
[1734696908373,43.70492907,180.49,180.4,44.5360256]
[1734696908543,31.30660794,180.49,180.4,34.27109653]
[1734696908738,31.30660794,180.49,180.4,77.9760256]
[1734696908978,43.70492907,180.54,180.36,43.70492907]
[1734696908979,43.70492907,180.45,180.36,43.70492907]
[1734696909273,43.70492907,180.45,180.37,0.83120506]
[1734696909479,43.70492907,180.45,180.39,20.0]
[1734696909839,43.70492907,180.47,180.4,34.27116263]
[1734696910181,43.70492907,180.51,180.43,33.44]
[1734696910472,55.13182907,180.63,180.36,43.70492907]
[1734696910473,43.70492907,180.59,180.5,43.70492907]
[1734696910644,43.70492907,180.61,180.52,77.14492907]
[1734696910837,43.70492907,180.61,180.53,0.83041842]
[1734696911049,43.70492907,180.54,180.53,0.83041842]
[1734696911246,87.40985814,180.54,180.41,0.83068906]
[1734696911470,43.70492907,180.48,180.41,0.83068906]
[1734696912106,43.70492907,180.5,180.42,43.70492907]
[1734696912259,43.70492907,180.48,180.42,0.83091579]
[1734696912456,43.70492907,180.54,180.39,0.83101947]
[1734696912457,43.70492907,180.46,180.39,0.83101947]
[1734696912668,43.70492907,180.46,180.19,14.33466781]
[1734696912669,20.0,180.3,180.19,14.33466781]
[1734696912843,20.0,180.27,180.1,0.8912858]
[1734696913048,87.40985814,180.13,180.1,0.8912858]
[1734696913270,43.70492907,180.18,180.1,0.8912858]
[1734696913271,87.40985814,180.11,180.1,0.8912858]
[1734696913748,87.53534814,180.11,180.1,0.8912858]
[1734696914179,43.70492907,180.11,180.1,0.8912858]
[1734696914768,47.44810969,180.11,180.1,0.8912858]
[1734696915662,43.70492907,180.11,180.1,0.8912858]
[1734696915877,43.70492907,180.07,179.97,0.83292067]
[1734696916057,43.70492907,180.07,179.96,22.23254]
[1734696916394,43.70492907,180.07,179.99,43.70492907]
[1734696916579,43.70492907,180.09,180.0,0.83279695]
[1734696916895,43.70492907,180.1,180.0,44.53772602]
[1734696917061,43.70492907,180.08,180.0,0.83279695]
[1734696917263,43.70492907,180.08,180.01,20.0]
[1734696917797,43.70492907,180.1,180.03,20.0]
[1734696917957,43.70492907,180.13,180.03,64.53760908]
[1734696918164,43.70492907,180.07,180.03,20.0]
[1734696918586,43.70492907,180.07,180.0,0.83269417]
[1734696918784,43.70492907,180.07,180.0,20.8329251]
[1734696918961,43.70492907,180.09,180.0,0.8329251]
[1734696919376,43.70492907,180.11,180.04,20.0]
[1734696919627,43.70492907,180.11,180.04,20.83268425]
[1734696919784,43.70492907,180.07,179.97,43.70492907]
[1734696919985,43.70492907,180.07,180.0,20.0]
[1734696920193,43.70492907,180.07,179.97,44.5378268]
[1734696920395,0.95832067,180.17,180.02,7.7839]
[1734696920597,43.70492907,180.18,180.03,0.8324091]
[1734696920893,43.70492907,180.18,180.09,43.70492907]
[1734696921264,43.70492907,180.2,180.1,0.83252494]
[1734696921460,43.70492907,180.2,180.11,43.70492907]
[1734696921667,43.70492907,180.36,180.2,20.0]
[1734696921668,43.70492907,180.28,180.2,20.0]
[1734696921870,0.95832067,180.33,180.26,43.70492907]
[1734696922169,0.95832067,180.34,180.26,43.70492907]
[1734696922371,0.95832067,180.36,180.29,20.0]
[1734696922587,43.70492907,180.37,180.29,20.0]
[1734696922788,43.70492907,180.35,180.29,20.0]
[1734696922990,43.70492907,180.35,180.26,43.70492907]
[1734696923173,43.70492907,180.39,180.29,20.0]
[1734696923376,43.70492907,180.39,180.3,43.70492907]
[1734696923582,43.70492907,180.41,180.33,20.0]
[1734696923775,43.70492907,180.37,180.29,20.0]
[1734696924081,11.6078,180.51,180.31,20.0]
[1734696924082,43.70492907,180.39,180.31,20.0]
[1734696924406,0.95832067,180.44,180.31,20.0]
[1734696924407,0.95832067,180.44,180.34,43.70492907]
[1734696924574,43.70492907,180.47,180.39,20.0]
[1734696924776,0.95832067,180.46,180.39,20.0]
[1734696925297,44.13799847,180.49,180.41,20.0]
[1734696925603,0.4330694,180.49,180.43,20.0]
[1734696925791,43.70492907,180.45,180.37,0.8311272]
[1734696926106,43.70492907,180.41,180.35,20.0]
[1734696926267,0.95832067,180.4,180.33,20.0]
[1734696926470,73.70492907,180.34,180.07,27.49654306]
[1734696926668,30.0,180.24,180.04,0.2698993]
[1734696926868,43.70492907,180.09,180.04,0.2698993]
[1734696927124,12.1031,180.21,180.04,0.2698993]
[1734696927125,43.70492907,180.08,180.04,0.2698993]
[1734696927290,43.70492907,180.06,180.04,0.2698993]
[1734696928198,1.16692909,180.05,180.04,0.2698993]
[1734696928709,1.04143909,180.05,180.04,0.2698993]
[1734696928892,43.70492907,180.05,180.04,0.2698993]
[1734696929206,0.12549,180.04,179.86,0.7029687]
[1734696929370,43.70492907,179.9,179.86,0.7029687]
[1734696929572,43.70492907,179.88,179.86,0.7029687]
[1734696929806,43.70492907,179.88,179.87,22.252089]
[1734696930307,0.12549,179.87,179.86,0.7029687]
[1734696930511,44.87322195,179.87,179.71,0.29529604]
[1734696930805,43.70492907,179.75,179.68,0.7029687]
[1734696931010,43.70492907,179.77,179.68,44.40789777]
[1734696931170,43.70492907,179.79,179.72,22.26913]
[1734696931375,43.70492907,179.79,179.7,44.00099756]
[1734696931568,43.70492907,179.75,179.7,0.29606849]
[1734696931772,43.70492907,179.73,179.68,0.7029687]
[1734696932001,43.70492907,179.71,179.68,0.7029687]
[1734696932597,43.70492907,179.73,179.68,0.7029687]
[1734696933111,43.70492907,179.71,179.68,0.7029687]
[1734696933283,1.04344391,179.7,179.68,0.7029687]
[1734696933470,43.70492907,179.71,179.68,0.7029687]
[1734696933669,43.70492907,179.75,179.68,0.7029687]
[1734696933873,43.70492907,179.71,179.68,0.7029687]
[1734696934302,43.70492907,179.73,179.68,0.7029687]
[1734696934685,43.70492907,179.69,179.68,0.7029687]
[1734696935004,43.70492907,179.65,179.55,44.00229939]
[1734696935210,43.70492907,179.67,179.59,43.70492907]
[1734696935503,43.70492907,179.67,179.55,0.29737032]
[1734696935504,1.04350827,179.72,179.64,43.70492907]
[1734696935679,43.70492907,179.75,179.66,43.70492907]
[1734696935878,43.70492907,179.77,179.66,43.70492907]
[1734696936079,43.70492907,179.82,179.64,43.70492907]
[1734696936080,43.70492907,179.73,179.64,43.70492907]
[1734696936303,43.70492907,179.71,179.62,43.70492907]
[1734696936488,43.70492907,179.73,179.64,43.70492907]
[1734696936684,43.70492907,179.79,179.69,20.0]
[1734696936879,43.70492907,179.79,179.71,20.0]
[1734696937082,1.04298521,179.88,179.71,20.0]
[1734696937083,43.70492907,179.77,179.71,20.0]
[1734696937279,43.70492907,179.79,179.71,20.0]
[1734696937480,43.70492907,179.85,179.77,20.0]
[1734696937697,43.70492907,179.84,179.81,20.0]
[1734696938081,43.70492907,179.86,179.78,20.0]
[1734696938282,43.70492907,179.88,179.83,20.0]
[1734696938506,43.70492907,179.88,179.79,23.776884]
[1734696938705,43.70492907,179.84,179.82,20.0]
[1734696939122,1.04274338,179.83,179.76,20.0]
[1734696939284,43.70492907,179.86,179.78,20.0]
[1734696939808,1.04277295,179.9,179.84,20.0]
[1734696939984,1.0422083,179.91,179.86,20.0]
[1734696940178,43.70492907,179.88,179.86,20.0]
[1734696940600,43.70492907,179.88,179.82,20.0]
[1734696940785,1.04253143,179.87,179.82,20.0]
[1734696941211,0.12549,179.82,179.74,0.29475206]
[1734696941421,43.70492907,179.81,179.72,43.70492907]
[1734696941712,43.70492907,179.81,179.7,43.70492907]
[1734696942219,43.70492907,179.79,179.7,43.70492907]
[1734696942508,43.70492907,179.79,179.65,0.29572199]
[1734696942509,43.70492907,179.83,179.74,43.70492907]
[1734696942717,43.70492907,179.85,179.77,20.0]
[1734696942892,43.70492907,179.83,179.79,20.0]
[1734696943216,43.70492907,179.81,179.79,20.0]
[1734696943414,1.042967,179.8,179.79,20.0]
[1734696943715,43.70492907,179.81,179.74,20.0]
[1734696943917,43.70492907,179.83,179.76,20.0]
[1734696944481,5.0,179.79,179.76,20.0]
[1734696944720,5.0,179.79,179.78,43.776884]
[1734696944887,5.0,179.79,179.78,44.07201068]
[1734696945100,1.2128,179.79,179.78,44.07201068]
[1734696945310,43.70492907,179.89,179.8,20.0]
[1734696945510,43.70492907,179.89,179.82,20.0]
[1734696946830,43.70492907,179.95,179.88,20.0]
[1734696947036,12.4778,180.02,179.88,20.0]
[1734696947037,43.70492907,179.89,179.88,20.0]
[1734696947544,43.70492907,179.89,179.77,0.2949076]
[1734696947693,43.70492907,179.84,179.75,0.29542588]
[1734696948106,43.70492907,179.84,179.74,43.70492907]
[1734696948439,43.70492907,179.82,179.73,0.29540015]
[1734696948607,0.12549,179.89,179.72,43.70492907]
[1734696948608,43.70492907,179.8,179.72,43.70492907]
[1734696948931,43.70492907,179.8,179.72,44.00082157]
[1734696949126,43.70492907,179.8,179.7,43.70492907]
[1734696949432,43.70492907,179.78,179.7,43.70492907]
[1734696949845,43.70492907,179.78,179.68,43.70492907]
[1734696950002,43.70492907,179.78,179.66,0.2958925]
[1734696950198,44.74790643,179.86,179.76,43.70492907]
[1734696950421,43.70492907,179.92,179.84,43.70492907]
[1734696950629,43.70492907,179.94,179.86,43.70492907]
[1734696950842,43.70492907,179.9,179.85,20.0]
[1734696951148,43.70492907,179.86,179.81,20.0]
[1734696952047,43.70492907,179.86,179.79,20.0]
[1734696953108,43.70492907,179.91,179.83,20.0]
[1734696953305,43.70492907,179.93,179.87,20.0]
[1734696953941,43.70492907,179.93,179.87,42.253131]
[1734696954249,43.70492907,179.91,179.87,42.253131]
[1734696954450,43.70492907,179.88,179.87,22.253131]
[1734696954755,43.70492907,179.9,179.8,43.70492907]
[1734696955252,43.70492907,179.9,179.8,43.99966199]
[1734696955557,43.70492907,179.88,179.8,0.29473292]
[1734696955761,43.70492907,179.86,179.79,22.257342]
[1734696956118,43.70492907,179.86,179.76,0.29523867]
[1734696956349,43.70492907,179.8,179.72,43.70492907]
[1734696956646,43.70492907,179.82,179.74,65.97365907]
[1734696956857,43.70492907,179.82,179.74,22.26873]
[1734696957453,43.70492907,179.8,179.74,22.26873]
[1734696957756,43.70492907,179.8,179.75,20.0]
[1734696958129,1.16834844,179.89,179.77,20.0]
[1734696958130,43.70492907,179.84,179.77,20.0]
[1734696958319,43.70492907,179.8,179.76,22.26584]
[1734696958523,43.70492907,179.78,179.7,43.70492907]
[1734696959023,43.70492907,179.78,179.71,22.271426]
[1734696959360,43.70492907,179.82,179.74,43.70492907]
[1734696959665,43.70492907,179.84,179.78,20.0]
[1734696960033,43.70492907,179.86,179.79,20.0]
[1734696960243,44.74739482,179.9,179.83,20.0]
[1734696960551,43.70492907,179.86,179.85,20.0]
[1734696960735,1.04247046,179.96,179.85,20.0]
[1734696960952,43.70492907,179.95,179.87,20.0]
[1734696961567,8.2051,179.97,179.88,20.0]
[1734696961733,43.70492907,179.91,179.88,20.0]
[1734696961932,43.70492907,179.93,179.88,20.0]
[1734696962166,43.70492907,179.93,179.86,20.0]
[1734696962348,43.70492907,179.91,179.86,20.0]
[1734696962856,43.70492907,179.99,179.92,20.0]
[1734696963061,43.70492907,179.99,179.96,20.0]
[1734696963644,43.70492907,179.99,179.95,20.0]
[1734696963841,43.70492907,180.01,179.95,20.0]
[1734696964078,8.1981,180.07,179.92,43.70492907]
[1734696964079,43.70492907,180.05,179.99,20.0]
[1734696964374,43.70492907,180.07,180.01,20.0]
[1734696964875,43.70492907,180.03,179.93,20.0]
[1734696965189,43.70492907,179.94,179.8,43.70492907]
[1734696965476,43.70492907,179.88,179.78,43.70492907]
[1734696965637,43.70492907,179.88,179.79,0.29489582]
[1734696965842,43.70492907,179.88,179.8,43.70492907]
[1734696966143,1.04240023,179.97,179.82,43.70492907]
[1734696966144,43.70492907,179.91,179.82,43.70492907]
[1734696966366,43.70492907,180.07,179.91,0.12549]
[1734696966564,1.04134739,180.06,179.97,43.70492907]
[1734696966769,43.70492907,180.07,179.98,0.29297583]
[1734696966938,43.70492907,180.05,179.97,43.70492907]
[1734696967138,43.70492907,180.07,179.97,43.70492907]
[1734696967368,43.70492907,180.02,180.0,20.0]
[1734696967684,43.70492907,180.06,180.04,20.0]
[1734696967840,43.70492907,180.08,180.0,20.29260315]
[1734696968243,43.70492907,180.08,180.02,20.0]
[1734696968440,43.70492907,180.12,180.06,20.0]
[1734696968661,43.70492907,180.12,180.09,20.0]
[1734696968977,43.70492907,180.12,180.07,20.0]
[1734696969166,43.70492907,180.08,180.07,20.0]
[1734696969347,1.04094072,180.11,179.92,0.29222087]
[1734696969348,43.70492907,180.09,179.99,20.0]
[1734696969544,43.70492907,180.09,180.0,43.70492907]
[1734696969855,43.70492907,180.11,180.02,43.70492907]
[1734696970670,43.70492907,180.11,180.05,20.0]
[1734696970843,43.70492907,180.09,180.07,20.0]
[1734696971176,1.04117526,180.08,179.98,43.70492907]
[1734696971371,43.70492907,180.07,179.98,43.70492907]
[1734696971780,43.70492907,180.09,180.0,43.70492907]
[1734696972079,44.40789777,180.13,180.05,23.776884]
[1734696972580,0.7029687,180.13,180.12,63.70492907]
[1734696972775,0.7029687,180.13,180.12,87.48181307]
[1734696973282,57.76332915,180.26,180.12,87.77301457]
[1734696973465,43.70492907,180.28,180.18,43.70492907]
[1734696973676,43.70492907,180.26,180.18,43.70492907]
[1734696973968,43.70492907,180.28,180.2,43.70492907]
[1734696974167,43.70492907,180.22,180.12,20.0]
[1734696974371,43.70492907,180.22,179.98,6.94345509]
[1734696974372,44.74545763,180.21,180.13,43.70492907]
[1734696974592,12.8621,180.34,180.15,43.70492907]
[1734696974593,0.3874185,180.24,180.15,43.70492907]
[1734696974883,0.3874185,180.24,180.19,43.70492907]
[1734696975180,0.3874185,180.24,180.16,0.29080193]
[1734696975181,0.3874185,180.24,180.17,43.70492907]
[1734696975379,43.70492907,180.23,180.18,20.0]
[1734696975586,43.70492907,180.19,180.07,43.70492907]
[1734696975755,43.70492907,180.12,180.05,43.70492907]
[1734696975958,43.70492907,180.14,180.05,43.70492907]
[1734696976163,43.70492907,180.16,180.09,43.70492907]
[1734696976478,43.70492907,180.18,180.09,43.70492907]
[1734696976651,1.04071244,180.17,180.09,43.70492907]
[1734696976856,43.70492907,180.18,180.09,43.70492907]
[1734696977402,51.62682907,180.22,180.16,20.0]
[1734696977687,43.70492907,180.2,180.16,20.0]
[1734696977982,5.3874185,180.24,180.16,20.0]
[1734696978188,49.09234757,180.24,180.18,20.0]
[1734696978377,5.3874185,180.24,180.18,20.0]
[1734696978578,49.09234757,180.24,180.18,20.0]
[1734696979076,5.3874185,180.24,180.2,20.0]
[1734696979587,5.3874185,180.24,180.23,87.48181307]
[1734696980391,5.3874185,180.24,180.23,63.70492907]
[1734696980572,5.3874185,180.24,180.23,87.48181307]
[1734696980899,5.3874185,180.24,180.23,87.77134816]
[1734696981773,5.3874185,180.24,180.23,63.70492907]
[1734696982696,5.3874185,180.24,180.23,87.48181307]
[1734696983064,5.3874185,180.24,180.23,120.92181307]
[1734696983380,43.70492907,180.4,180.31,20.0]
[1734696983590,43.70492907,180.4,180.31,63.70492907]
[1734696983885,43.70492907,180.38,180.34,20.0]
[1734696984100,43.70492907,180.36,180.34,20.0]
[1734696984605,43.70492907,180.36,180.3,20.0]
[1734696984904,1.03976617,180.41,180.34,20.0]
[1734696985203,7.3757,180.42,180.36,20.0]
[1734696985505,13.33710388,180.43,180.38,20.0]
[1734696985814,0.7448781,180.44,180.4,20.0]
[1734696986217,0.7448781,180.44,180.42,20.0]
[1734696986687,0.7448781,180.44,180.4,20.0]
[1734696986888,44.44980717,180.44,180.4,20.0]
[1734696987081,0.7448781,180.44,180.4,20.0]
[1734696987578,43.70492907,180.42,180.36,20.0]
[1734696987778,43.70492907,180.38,180.29,43.70492907]
[1734696988109,43.70492907,180.42,180.33,43.70492907]
[1734696988295,44.44980717,180.44,180.35,43.70492907]
[1734696988482,0.7448781,180.44,180.37,43.70492907]
[1734696988677,0.7448781,180.44,180.39,43.70492907]
[1734696988881,0.7448781,180.44,180.43,43.70492907]
[1734696989774,0.7448781,180.44,180.43,20.0]
[1734696990205,0.7448781,180.44,180.43,63.70492907]
[1734696990618,1.03880028,180.6,180.57,20.0]
[1734696990781,1.03830757,180.62,180.57,20.0]
[1734696990994,44.44980717,180.63,180.57,20.0]
[1734696992205,43.70492907,180.61,180.52,43.70492907]
[1734696992415,43.70492907,180.61,180.55,20.0]
[1734696992601,43.70492907,180.57,180.55,20.0]
[1734696992816,43.70492907,180.59,180.5,43.70492907]
[1734696993127,43.70492907,180.56,180.48,43.70492907]
[1734696993317,43.70492907,180.52,180.44,43.70492907]
[1734696993989,44.44980717,180.63,180.37,0.28744946]
[1734696993990,43.70492907,180.5,180.42,43.70492907]
[1734696994194,43.70492907,180.46,180.38,43.70492907]
[1734696995124,1.03914907,180.52,180.31,0.2883935]
[1734696995125,43.70492907,180.44,180.31,0.2883935]
[1734696995426,43.70492907,180.35,180.25,43.70492907]
[1734696995626,1.03977548,180.34,180.27,22.197232]
[1734696996013,1.03977548,180.34,180.25,43.70492907]
[1734696996215,1.03980634,180.34,180.25,43.70492907]
[1734696996421,43.70492907,180.35,180.27,43.70492907]
[1734696996597,1.03968502,180.34,180.27,43.70492907]
[1734696996799,43.70492907,180.35,180.27,43.70492907]
[1734696997109,43.70492907,180.39,180.29,43.70492907]
[1734696997509,43.70492907,180.39,180.31,43.70492907]
[1734696997711,43.70492907,180.41,180.31,43.70492907]
[1734696997928,43.70492907,180.41,180.33,43.70492907]
[1734696998130,43.70492907,180.41,180.36,20.0]
[1734696998700,43.70492907,180.43,180.36,20.0]
[1734696998899,1.03936081,180.42,180.36,20.0]
[1734696999124,43.70492907,180.43,180.36,20.0]
[1734696999334,1.03929194,180.42,180.36,20.0]
[1734696999628,1.03929194,180.42,180.33,43.70492907]
[1734696999629,43.70492907,180.43,180.38,20.0]
[1734696999827,43.70492907,180.45,180.38,20.0]
[1734697000009,43.70492907,180.43,180.4,20.0]
[1734697000416,1.03930745,180.42,180.4,20.0]
[1734697000620,43.70492907,180.41,180.31,43.70492907]
[1734697000811,43.70492907,180.41,180.34,20.0]
[1734697001016,43.70492907,180.43,180.36,20.0]
[1734697001336,43.70492907,180.41,180.36,20.0]
[1734697001629,43.70492907,180.39,180.31,43.70492907]
[1734697001835,43.70492907,180.41,180.31,43.70492907]
[1734697002018,1.03946038,180.4,180.31,43.70492907]
[1734697002533,43.70492907,180.41,180.33,43.70492907]
[1734697002735,43.70492907,180.43,180.37,33.44]
[1734697002908,43.70492907,180.45,180.4,20.0]
[1734697003108,43.70492907,180.43,180.4,20.0]
[1734697003318,43.70492907,180.45,180.38,20.0]
[1734697003628,43.70492907,180.49,180.44,20.0]
[1734697003831,11.8985,180.53,180.44,20.0]
[1734697003832,43.70492907,180.51,180.44,20.0]
[1734697004136,43.70492907,180.51,180.46,20.0]
[1734697004307,43.70492907,180.51,180.48,20.0]
[1734697005141,43.70492907,180.49,180.4,20.0]
[1734697005327,43.70492907,180.46,180.4,20.0]
[1734697005707,43.70492907,180.44,180.35,43.70492907]
[1734697005907,0.12549,180.52,180.35,43.70492907]
[1734697006124,43.70492907,180.44,180.35,43.70492907]
[1734697006522,43.70492907,180.54,180.29,43.70492907]
[1734697006523,43.70492907,180.38,180.29,43.70492907]
[1734697006724,43.70492907,180.45,180.27,43.70492907]
[1734697006725,43.70492907,180.36,180.27,43.70492907]
[1734697007639,43.70492907,180.36,180.29,43.70492907]
[1734697008009,43.70492907,180.36,180.27,0.28948427]
[1734697008207,43.70492907,180.36,180.3,20.0]
[1734697008839,43.70492907,180.34,180.3,20.0]
[1734697009139,43.70492907,180.36,180.27,43.70492907]
[1734697009343,43.70492907,180.36,180.29,43.70492907]
[1734697009545,43.70492907,180.32,180.26,22.205567]
[1734697009708,43.70492907,180.3,180.2,43.70492907]
[1734697010054,43.70492907,180.26,180.16,43.70492907]
[1734697010341,43.70492907,180.21,180.17,22.21764]
[1734697010723,43.70492907,180.21,180.13,43.70492907]
[1734697010951,1.04030924,180.25,180.14,22.219643]
[1734697010952,43.70492907,180.23,180.14,22.219643]
[1734697011325,43.70492907,180.21,180.14,22.219643]
[1734697011635,1.04050799,180.2,180.14,22.219643]
[1734697011822,43.70492907,180.15,180.14,22.219643]
[1734697012343,43.70492907,180.15,180.03,43.70492907]
[1734697012643,43.70492907,180.08,179.99,43.70492907]
[1734697012818,43.70492907,180.1,180.01,43.70492907]
[1734697013146,43.70492907,180.14,180.05,43.70492907]
[1734697013352,1.04104117,180.13,180.05,43.70492907]
[1734697013650,43.70492907,180.12,180.03,43.70492907]
[1734697013944,1.04108631,180.11,180.04,43.70492907]
[1734697014144,44.74601538,180.11,180.02,43.70492907]
[1734697014446,43.70492907,180.07,179.98,43.70492907]
[1734697014649,43.70492907,180.03,179.96,0.7448781]
[1734697014854,43.70492907,179.97,179.96,0.7448781]
[1734697015142,43.70492907,179.97,179.83,0.29369018]
[1734697015143,55.44522907,179.99,179.9,43.70492907]
[1734697015348,43.70492907,179.95,179.86,43.70492907]
[1734697015544,1.04227288,179.94,179.86,43.70492907]
[1734697015844,43.70492907,179.93,179.84,43.70492907]
[1734697016039,43.70492907,179.93,179.83,5.76036282]
[1734697016040,43.70492907,179.91,179.82,43.70492907]
[1734697016215,1.0425363,179.9,179.88,43.70492907]
[1734697016550,1.0425363,179.95,179.88,43.70492907]
[1734697016713,11.7403,179.99,179.94,43.70492907]
[1734697017051,1.04189551,180.02,179.84,0.29388638]
[1734697017277,1.04164628,180.05,180.0,43.70492907]
[1734697017740,7.8362,180.06,180.02,43.70492907]
[1734697017741,1.04166602,180.04,180.02,43.70492907]
[1734697017956,1.04166602,180.07,180.06,20.0]
[1734697018154,7.8362,180.16,180.06,20.0]
[1734697018155,1.04139655,180.11,180.08,23.776884]
[1734697018449,1.04139655,180.11,180.1,20.0]
[1734697018818,1.04126116,180.14,180.09,20.0]
[1734697019014,20.7168,180.16,180.15,20.0]
[1734697019216,12.8806,180.16,180.15,20.0]
[1734697019842,12.8806,180.16,180.01,0.29185693]
[1734697019843,12.8806,180.16,180.09,43.70492907]
[1734697020149,12.8806,180.16,180.12,20.0]
[1734697020150,1.04104691,180.15,180.12,20.0]
[1734697020552,43.70492907,180.14,180.08,20.0]
[1734697020725,1.04122683,180.13,180.1,20.0]
[1734697021072,43.70492907,180.11,179.83,22.255546]
[1734697021278,43.70492907,180.03,179.94,43.70492907]
[1734697021486,43.70492907,180.03,179.88,43.70492907]
[1734697021487,43.70492907,179.97,179.88,43.70492907]
[1734697021683,1.0423174,179.96,179.83,22.255546]